[Event "Titled Tuesday Blitz June 20 Late 2023"]
[White "Jovic, Stanoje"]
[Black "Martinez, Ayelen"]
[WhiteFideId "905020"]
[BlackFideId "118702"]
[WhiteElo "2236"]
[BlackElo "2074"]
[Result "0-1"]
[Round "4"]
[TimeControl "180+2"]
[Date "2023.06.20"]
[WhiteClock "0:00:00"]
[BlackClock "0:00:18"]
[Board "138"]

1. c4 {[%clk 0:03:00]}  Nf6 {[%clk 0:02:57]} 2. g3 {[%clk 0:03:01]}  g6 {[%clk 0:02:53]} 3. Bg2 {[%clk 0:03:01]}  Bg7 {[%clk 0:02:54]} 4. Nc3 {[%clk 0:03:01]}  O-O {[%clk 0:02:55]} 5. Nf3 {[%clk 0:03:01]}  d6 {[%clk 0:02:56]} 6. O-O {[%clk 0:03:01]}  c5 {[%clk 0:02:57]} 7. d4 {[%clk 0:03:01]}  Nc6 {[%clk 0:02:57]} 8. dxc5 {[%clk 0:03:00]}  dxc5 {[%clk 0:02:57]} 9. Bf4 {[%clk 0:03:01]}  Be6 {[%clk 0:02:55]} 10. Qa4 {[%clk 0:03:00]}  Qa5 {[%clk 0:02:51]} 11. Nd2 {[%clk 0:03:00]}  Qxa4 {[%clk 0:02:47]} 12. Nxa4 {[%clk 0:02:59]}  Nd4 {[%clk 0:02:48]} 13. Rae1 {[%clk 0:02:58]}  Nh5 {[%clk 0:02:36]} 14. Nxc5 {[%clk 0:02:50]}  Nxf4 {[%clk 0:02:34]} 15. gxf4 {[%clk 0:02:50]}  Bg4 {[%clk 0:02:31]} 16. f3 {[%clk 0:02:37]}  Bc8 {[%clk 0:02:16]} 17. e3 {[%clk 0:02:32]}  Nc2 {[%clk 0:02:04]} 18. Re2 {[%clk 0:02:31]}  Nxe3 {[%clk 0:02:04]} 19. Rfe1 {[%clk 0:02:16]}  Nc2 {[%clk 0:01:55]} 20. Rc1 {[%clk 0:01:45]}  Nd4 {[%clk 0:01:36]} 21. Rxe7 {[%clk 0:01:37]}  Nf5 {[%clk 0:01:36]} 22. Rc7 {[%clk 0:01:30]}  Bxb2 {[%clk 0:01:26]} 23. Rb1 {[%clk 0:01:27]}  Bd4+ {[%clk 0:01:24]} 24. Kh1 {[%clk 0:01:26]}  Ne3 {[%clk 0:01:15]} 25. Nxb7 {[%clk 0:01:17]}  Bb6 {[%clk 0:01:06]} 26. Re7 {[%clk 0:01:10]}  Nf5 {[%clk 0:01:05]} 27. Re5 {[%clk 0:00:32]}  Bxb7 {[%clk 0:00:35]} 28. c5 {[%clk 0:00:32]}  Rad8 {[%clk 0:00:30]} 29. Ne4 {[%clk 0:00:19]}  Bc7 {[%clk 0:00:22]} 30. Nd6 {[%clk 0:00:05]}  Bxd6 {[%clk 0:00:20]} 31. cxd6 {[%clk 0:00:05]}  Rxd6 {[%clk 0:00:18]} 32. h4 {[%clk 0:00:03]}  Bd5 {[%clk 0:00:18]} 33. h5 {[%clk 0:00:00]}  Be6 {[%clk 0:00:18]} 0-1


[Site "https://www.chess.com"]

[Event "Titled Tuesday Blitz June 20 Late 2023"]
[White "Gomez Barrera, Javiera Belen"]
[Black "Barrionuevo, Pablo"]
[WhiteFideId "3418723"]
[BlackFideId "110566"]
[WhiteElo "2119"]
[BlackElo "2212"]
[Result "1-0"]
[Round "4"]
[TimeControl "180+2"]
[Date "2023.06.20"]
[WhiteClock "0:00:07"]
[BlackClock "0:00:39"]
[Board "142"]

1. e4 {[%clk 0:02:53]}  e5 {[%clk 0:03:00]} 2. Nf3 {[%clk 0:02:53]}  Nc6 {[%clk 0:03:00]} 3. Bc4 {[%clk 0:02:54]}  Nf6 {[%clk 0:03:00]} 4. d3 {[%clk 0:02:54]}  Be7 {[%clk 0:03:00]} 5. Nc3 {[%clk 0:02:54]}  O-O {[%clk 0:03:01]} 6. a4 {[%clk 0:02:54]}  h6 {[%clk 0:02:57]} 7. a5 {[%clk 0:02:54]}  a6 {[%clk 0:02:56]} 8. O-O {[%clk 0:02:54]}  Bb4 {[%clk 0:02:56]} 9. Nd5 {[%clk 0:02:27]}  Bxa5 {[%clk 0:02:56]} 10. c3 {[%clk 0:02:24]}  d6 {[%clk 0:02:50]} 11. b4 {[%clk 0:02:23]}  Bb6 {[%clk 0:02:50]} 12. Nxb6 {[%clk 0:02:23]}  cxb6 {[%clk 0:02:50]} 13. b5 {[%clk 0:02:21]}  Na5 {[%clk 0:02:48]} 14. Ba2 {[%clk 0:01:58]}  axb5 {[%clk 0:02:47]} 15. Be3 {[%clk 0:01:58]}  Bd7 {[%clk 0:02:46]} 16. Rb1 {[%clk 0:01:53]}  Rc8 {[%clk 0:02:45]} 17. Qd2 {[%clk 0:01:51]}  Ng4 {[%clk 0:02:43]} 18. Bd5 {[%clk 0:01:48]}  Bc6 {[%clk 0:02:40]} 19. Ba2 {[%clk 0:01:39]}  Kh7 {[%clk 0:02:32]} 20. h3 {[%clk 0:01:37]}  Nxe3 {[%clk 0:02:32]} 21. fxe3 {[%clk 0:01:38]}  Qe7 {[%clk 0:02:23]} 22. Qf2 {[%clk 0:01:36]}  Rcd8 {[%clk 0:02:18]} 23. Nh4 {[%clk 0:01:34]}  g6 {[%clk 0:02:16]} 24. Qf6 {[%clk 0:01:19]}  Qxf6 {[%clk 0:02:15]} 25. Rxf6 {[%clk 0:01:20]}  d5 {[%clk 0:01:51]} 26. Rbf1 {[%clk 0:01:18]}  Kg7 {[%clk 0:01:50]} 27. exd5 {[%clk 0:01:13]}  Bxd5 {[%clk 0:01:50]} 28. Bxd5 {[%clk 0:01:13]}  Rxd5 {[%clk 0:01:50]} 29. Nxg6 {[%clk 0:01:09]}  Re8 {[%clk 0:01:46]} 30. Nh4 {[%clk 0:01:06]}  Re7 {[%clk 0:01:38]} 31. Rxb6 {[%clk 0:01:04]}  Rc7 {[%clk 0:01:36]} 32. Nf5+ {[%clk 0:01:03]}  Kg8 {[%clk 0:01:35]} 33. Rxh6 {[%clk 0:01:04]}  Rxd3 {[%clk 0:01:33]} 34. Rf3 {[%clk 0:00:58]}  Rc6 {[%clk 0:01:10]} 35. Ne7+ {[%clk 0:00:47]}  Kg7 {[%clk 0:01:10]} 36. Nxc6 {[%clk 0:00:43]}  bxc6 {[%clk 0:01:04]} 37. Rhf6 {[%clk 0:00:44]}  Rd7 {[%clk 0:01:03]} 38. h4 {[%clk 0:00:39]}  c5 {[%clk 0:01:03]} 39. Rb6 {[%clk 0:00:34]}  Nc4 {[%clk 0:00:58]} 40. Rxb5 {[%clk 0:00:32]}  Rd1+ {[%clk 0:00:57]} 41. Kh2 {[%clk 0:00:32]}  Nd2 {[%clk 0:00:57]} 42. Rg3+ {[%clk 0:00:32]}  Kf8 {[%clk 0:00:55]} 43. Rg5 {[%clk 0:00:23]}  Nf1+ {[%clk 0:00:54]} 44. Kh3 {[%clk 0:00:24]}  f6 {[%clk 0:00:53]} 45. Rf5 {[%clk 0:00:20]}  Kf7 {[%clk 0:00:53]} 46. Rf3 {[%clk 0:00:18]}  e4 {[%clk 0:00:52]} 47. Rb7+ {[%clk 0:00:19]}  Ke8 {[%clk 0:00:51]} 48. Rxf6 {[%clk 0:00:18]}  Nxe3 {[%clk 0:00:51]} 49. Re6+ {[%clk 0:00:18]}  Kd8 {[%clk 0:00:51]} 50. Rxe4 {[%clk 0:00:19]}  Rh1+ {[%clk 0:00:50]} 51. Kg3 {[%clk 0:00:18]}  Nf5+ {[%clk 0:00:51]} 52. Kf2 {[%clk 0:00:15]}  Nd6 {[%clk 0:00:50]} 53. Rbe7 {[%clk 0:00:07]}  Nxe4+ {[%clk 0:00:47]} 54. Rxe4 {[%clk 0:00:08]}  Kd7 {[%clk 0:00:46]} 55. Kg3 {[%clk 0:00:04]}  Kd6 {[%clk 0:00:45]} 56. Kg4 {[%clk 0:00:04]}  Kd5 {[%clk 0:00:46]} 57. Rf4 {[%clk 0:00:04]}  Rg1 {[%clk 0:00:46]} 58. g3 {[%clk 0:00:04]}  Rc1 {[%clk 0:00:46]} 59. h5 {[%clk 0:00:04]}  Rxc3 {[%clk 0:00:44]} 60. h6 {[%clk 0:00:05]}  Rc1 {[%clk 0:00:45]} 61. Kg5 {[%clk 0:00:04]}  Rg1 {[%clk 0:00:44]} 62. g4 {[%clk 0:00:01]}  Rh1 {[%clk 0:00:44]} 63. Kg6 {[%clk 0:00:02]}  c4 {[%clk 0:00:45]} 64. Kg7 {[%clk 0:00:02]}  c3 {[%clk 0:00:44]} 65. Rf2 {[%clk 0:00:02]}  Kd4 {[%clk 0:00:42]} 66. g5 {[%clk 0:00:02]}  Ke3 {[%clk 0:00:42]} 67. Rc2 {[%clk 0:00:02]}  Kd3 {[%clk 0:00:42]} 68. Rxc3+ {[%clk 0:00:02]}  Kxc3 {[%clk 0:00:43]} 69. g6 {[%clk 0:00:03]}  Kd4 {[%clk 0:00:43]} 70. h7 {[%clk 0:00:04]}  Ke5 {[%clk 0:00:44]} 71. h8=Q {[%clk 0:00:04]}  Rb1 {[%clk 0:00:41]} 72. Kf7+ {[%clk 0:00:03]}  Kf5 {[%clk 0:00:40]} 73. Qh5+ {[%clk 0:00:03]}  Kf4 {[%clk 0:00:39]} 74. Qh4+ {[%clk 0:00:04]}  Kf5 {[%clk 0:00:40]} 75. Qf6+ {[%clk 0:00:05]}  Kg4 {[%clk 0:00:39]} 76. Qd4+ {[%clk 0:00:05]}  Kh5 {[%clk 0:00:39]} 77. Qe5+ {[%clk 0:00:05]}  Kh4 {[%clk 0:00:40]} 78. Qe4+ {[%clk 0:00:05]}  Kh5 {[%clk 0:00:39]} 79. Qxb1 {[%clk 0:00:06]}  Kh6 {[%clk 0:00:40]} 80. g7 {[%clk 0:00:06]}  Kg5 {[%clk 0:00:39]} 81. Qg6+ {[%clk 0:00:07]}  Kf4 {[%clk 0:00:39]} 82. g8=Q {[%clk 0:00:07]} 1-0


[Site "https://www.chess.com"]

[Event "Titled Tuesday Blitz June 20 Late 2023"]
[White "Gabdushev, Ruslan"]
[Black "disciplinedbrat"]
[WhiteFideId "4137833"]
[WhiteElo "2233"]
[BlackElo "2245"]
[Result "0-1"]
[Round "4"]
[TimeControl "180+2"]
[Date "2023.06.20"]
[WhiteClock "0:00:00"]
[BlackClock "0:00:19"]
[Board "148"]

1. b3 {[%clk 0:02:58]}  b6 {[%clk 0:02:57]} 2. Bb2 {[%clk 0:02:57]}  Bb7 {[%clk 0:02:58]} 3. e3 {[%clk 0:02:57]}  e6 {[%clk 0:02:57]} 4. f4 {[%clk 0:02:57]}  Nf6 {[%clk 0:02:36]} 5. Nf3 {[%clk 0:02:56]}  Be7 {[%clk 0:02:35]} 6. Be2 {[%clk 0:02:55]}  d6 {[%clk 0:02:36]} 7. O-O {[%clk 0:02:54]}  c5 {[%clk 0:02:36]} 8. a4 {[%clk 0:02:52]}  Nbd7 {[%clk 0:02:35]} 9. a5 {[%clk 0:02:51]}  bxa5 {[%clk 0:02:35]} 10. Qe1 {[%clk 0:02:44]}  O-O {[%clk 0:02:29]} 11. Qg3 {[%clk 0:02:42]}  d5 {[%clk 0:02:16]} 12. d3 {[%clk 0:02:36]}  d4 {[%clk 0:02:12]} 13. Nbd2 {[%clk 0:02:31]}  Qc7 {[%clk 0:02:02]} 14. Nc4 {[%clk 0:02:27]}  dxe3 {[%clk 0:01:46]} 15. Nfe5 {[%clk 0:02:24]}  Bd5 {[%clk 0:01:38]} 16. Nxd7 {[%clk 0:02:14]}  Qxd7 {[%clk 0:01:34]} 17. Nxe3 {[%clk 0:02:13]}  Rfd8 {[%clk 0:01:23]} 18. Rxa5 {[%clk 0:02:10]}  g6 {[%clk 0:01:20]} 19. f5 {[%clk 0:02:01]}  exf5 {[%clk 0:01:14]} 20. Rxf5 {[%clk 0:01:54]}  Qe6 {[%clk 0:01:01]} 21. Nxd5 {[%clk 0:01:21]}  Rxd5 {[%clk 0:00:57]} 22. Rf2 {[%clk 0:01:09]}  Nh5 {[%clk 0:00:46]} 23. Qc7 {[%clk 0:00:57]}  Bd6 {[%clk 0:00:36]} 24. Qb7 {[%clk 0:00:49]}  Rb8 {[%clk 0:00:27]} 25. Qxa7 {[%clk 0:00:42]}  Nf4 {[%clk 0:00:27]} 26. Bf1 {[%clk 0:00:36]}  Rg5 {[%clk 0:00:26]} 27. g3 {[%clk 0:00:16]}  Qe1 {[%clk 0:00:25]} 28. Rxf4 {[%clk 0:00:08]}  Bxf4 {[%clk 0:00:22]} 29. Kg2 {[%clk 0:00:00]}  Rxg3+ {[%clk 0:00:19]} 0-1


[Site "https://www.chess.com"]

[Event "Titled Tuesday Blitz June 20 Late 2023"]
[White "Florianovitz, Derlei Alex"]
[Black "Yurasova, Daria"]
[WhiteFideId "2114178"]
[BlackFideId "34146919"]
[WhiteElo "1953"]
[BlackElo "2109"]
[Result "0-1"]
[Round "4"]
[TimeControl "180+2"]
[Date "2023.06.20"]
[WhiteClock "0:00:04"]
[BlackClock "0:00:10"]
[Board "149"]

1. e4 {[%clk 0:03:00]}  e5 {[%clk 0:03:00]} 2. Nf3 {[%clk 0:03:00]}  Nc6 {[%clk 0:03:00]} 3. Bb5 {[%clk 0:03:00]}  a6 {[%clk 0:02:59]} 4. Ba4 {[%clk 0:02:59]}  d6 {[%clk 0:02:59]} 5. O-O {[%clk 0:02:59]}  Nf6 {[%clk 0:02:59]} 6. Re1 {[%clk 0:02:58]}  Bd7 {[%clk 0:02:59]} 7. c3 {[%clk 0:02:58]}  g6 {[%clk 0:02:59]} 8. h3 {[%clk 0:02:56]}  Bg7 {[%clk 0:02:59]} 9. d4 {[%clk 0:02:55]}  O-O {[%clk 0:02:59]} 10. Nbd2 {[%clk 0:02:45]}  Re8 {[%clk 0:02:52]} 11. d5 {[%clk 0:02:44]}  Ne7 {[%clk 0:02:52]} 12. Bc2 {[%clk 0:02:43]}  c6 {[%clk 0:02:47]} 13. c4 {[%clk 0:02:41]}  b5 {[%clk 0:02:47]} 14. b3 {[%clk 0:02:37]}  a5 {[%clk 0:02:47]} 15. dxc6 {[%clk 0:02:14]}  Bxc6 {[%clk 0:01:53]} 16. Ba3 {[%clk 0:02:14]}  b4 {[%clk 0:01:43]} 17. Bb2 {[%clk 0:02:09]}  Nd7 {[%clk 0:01:42]} 18. Nf1 {[%clk 0:02:04]}  Nc5 {[%clk 0:01:40]} 19. Qd2 {[%clk 0:01:57]}  f5 {[%clk 0:01:31]} 20. Ng5 {[%clk 0:01:40]}  h6 {[%clk 0:01:31]} 21. Nf3 {[%clk 0:01:23]}  Nxe4 {[%clk 0:01:09]} 22. Bxe4 {[%clk 0:01:22]}  Bxe4 {[%clk 0:01:09]} 23. Rad1 {[%clk 0:01:20]}  Bxf3 {[%clk 0:00:56]} 24. gxf3 {[%clk 0:01:19]}  Ra6 {[%clk 0:00:57]} 25. f4 {[%clk 0:01:13]}  Qc7 {[%clk 0:00:34]} 26. Ne3 {[%clk 0:01:03]}  Qc5 {[%clk 0:00:28]} 27. Nd5 {[%clk 0:00:40]}  Nxd5 {[%clk 0:00:28]} 28. Qxd5+ {[%clk 0:00:41]}  Qxd5 {[%clk 0:00:27]} 29. Rxd5 {[%clk 0:00:41]}  e4 {[%clk 0:00:24]} 30. Bxg7 {[%clk 0:00:36]}  Kxg7 {[%clk 0:00:25]} 31. Red1 {[%clk 0:00:36]}  Re6 {[%clk 0:00:18]} 32. c5 {[%clk 0:00:19]}  dxc5 {[%clk 0:00:18]} 33. Rxc5 {[%clk 0:00:19]}  Rec6 {[%clk 0:00:16]} 34. Rd7+ {[%clk 0:00:16]}  Kf6 {[%clk 0:00:16]} 35. Rcd5 {[%clk 0:00:14]}  a4 {[%clk 0:00:16]} 36. Rh7 {[%clk 0:00:12]}  Rd6 {[%clk 0:00:14]} 37. Rb5 {[%clk 0:00:11]}  Rab6 {[%clk 0:00:10]} 38. bxa4 {[%clk 0:00:11]}  Rxb5 {[%clk 0:00:10]} 39. axb5 {[%clk 0:00:12]}  Rb6 {[%clk 0:00:11]} 40. Rxh6 {[%clk 0:00:11]}  Rxb5 {[%clk 0:00:11]} 41. h4 {[%clk 0:00:04]}  Kg7 {[%clk 0:00:10]} 0-1


[Site "https://www.chess.com"]

[Event "Titled Tuesday Blitz June 20 Late 2023"]
[White "Seletsky, Grigory"]
[Black "Vila Dupla, Aurelio"]
[WhiteFideId "14112191"]
[BlackFideId "2203383"]
[WhiteElo "2491"]
[BlackElo "2009"]
[Result "1/2-1/2"]
[Round "4"]
[TimeControl "180+2"]
[Date "2023.06.20"]
[WhiteClock "0:00:10"]
[BlackClock "0:00:06"]
[Board "152"]

1. d4 {[%clk 0:02:58]}  Nf6 {[%clk 0:02:59]} 2. Nf3 {[%clk 0:02:59]}  g6 {[%clk 0:02:59]} 3. Bg5 {[%clk 0:02:59]}  Bg7 {[%clk 0:02:58]} 4. Nbd2 {[%clk 0:02:58]}  d5 {[%clk 0:02:57]} 5. c3 {[%clk 0:02:58]}  O-O {[%clk 0:02:57]} 6. e3 {[%clk 0:02:58]}  b6 {[%clk 0:02:56]} 7. h3 {[%clk 0:02:58]}  c5 {[%clk 0:02:54]} 8. Be2 {[%clk 0:02:58]}  Bb7 {[%clk 0:02:54]} 9. O-O {[%clk 0:02:58]}  Nc6 {[%clk 0:02:54]} 10. a3 {[%clk 0:02:57]}  h6 {[%clk 0:02:49]} 11. Bh4 {[%clk 0:02:56]}  Qc7 {[%clk 0:02:34]} 12. Bg3 {[%clk 0:02:55]}  Qd8 {[%clk 0:02:26]} 13. Qb1 {[%clk 0:02:55]}  Nd7 {[%clk 0:02:21]} 14. Rd1 {[%clk 0:02:54]}  e5 {[%clk 0:01:59]} 15. dxe5 {[%clk 0:02:52]}  Ncxe5 {[%clk 0:01:59]} 16. Nc4 {[%clk 0:02:51]}  Qe7 {[%clk 0:01:40]} 17. Ncxe5 {[%clk 0:02:47]}  Nxe5 {[%clk 0:01:40]} 18. Nxe5 {[%clk 0:02:47]}  Bxe5 {[%clk 0:01:40]} 19. Bxe5 {[%clk 0:02:47]}  Qxe5 {[%clk 0:01:41]} 20. Bf3 {[%clk 0:02:47]}  Rad8 {[%clk 0:01:33]} 21. Rd2 {[%clk 0:02:42]}  Ba8 {[%clk 0:01:24]} 22. Qd1 {[%clk 0:02:36]}  Rd6 {[%clk 0:01:23]} 23. Qa4 {[%clk 0:02:36]}  Qe7 {[%clk 0:01:06]} 24. Rad1 {[%clk 0:02:35]}  Rfd8 {[%clk 0:01:07]} 25. b4 {[%clk 0:02:26]}  Bc6 {[%clk 0:01:04]} 26. Qb3 {[%clk 0:02:24]}  Qd7 {[%clk 0:01:00]} 27. Qb2 {[%clk 0:02:14]}  Ba4 {[%clk 0:00:58]} 28. Rc1 {[%clk 0:02:14]}  d4 {[%clk 0:00:53]} 29. cxd4 {[%clk 0:02:11]}  cxd4 {[%clk 0:00:53]} 30. exd4 {[%clk 0:02:05]}  Rxd4 {[%clk 0:00:52]} 31. Rxd4 {[%clk 0:02:01]}  Qxd4 {[%clk 0:00:52]} 32. Qxd4 {[%clk 0:01:59]}  Rxd4 {[%clk 0:00:52]} 33. Rc3 {[%clk 0:01:59]}  Bb5 {[%clk 0:00:43]} 34. Kh2 {[%clk 0:01:53]}  Kg7 {[%clk 0:00:43]} 35. Kg3 {[%clk 0:01:52]}  Rd3 {[%clk 0:00:43]} 36. Rxd3 {[%clk 0:01:51]}  Bxd3 {[%clk 0:00:43]} 37. Kf4 {[%clk 0:01:48]}  Kf6 {[%clk 0:00:43]} 38. h4 {[%clk 0:01:45]}  g5+ {[%clk 0:00:43]} 39. hxg5+ {[%clk 0:01:46]}  hxg5+ {[%clk 0:00:44]} 40. Ke3 {[%clk 0:01:46]}  Bb5 {[%clk 0:00:40]} 41. Kd4 {[%clk 0:01:45]}  Ke6 {[%clk 0:00:33]} 42. Bd5+ {[%clk 0:01:37]}  Ke7 {[%clk 0:00:29]} 43. g3 {[%clk 0:01:36]}  f6 {[%clk 0:00:27]} 44. f4 {[%clk 0:01:36]}  gxf4 {[%clk 0:00:26]} 45. gxf4 {[%clk 0:01:35]}  Kd6 {[%clk 0:00:27]} 46. Bb3 {[%clk 0:01:34]}  Be2 {[%clk 0:00:26]} 47. Ke4 {[%clk 0:01:32]}  Bg4 {[%clk 0:00:26]} 48. Bc4 {[%clk 0:01:28]}  a5 {[%clk 0:00:26]} 49. Kd4 {[%clk 0:01:26]}  axb4 {[%clk 0:00:26]} 50. axb4 {[%clk 0:01:26]}  Bf3 {[%clk 0:00:26]} 51. Ke3 {[%clk 0:01:20]}  Bc6 {[%clk 0:00:26]} 52. Kf2 {[%clk 0:01:12]}  Bd5 {[%clk 0:00:26]} 53. Bd3 {[%clk 0:01:11]}  Bc6 {[%clk 0:00:23]} 54. Bc4 {[%clk 0:00:57]}  Bd5 {[%clk 0:00:21]} 55. Bd3 {[%clk 0:00:51]}  Bb3 {[%clk 0:00:21]} 56. Be4 {[%clk 0:00:49]}  Bd5 {[%clk 0:00:21]} 57. Ke3 {[%clk 0:00:49]}  Bc4 {[%clk 0:00:14]} 58. Kd4 {[%clk 0:00:45]}  Be2 {[%clk 0:00:14]} 59. Bf5 {[%clk 0:00:42]}  Bf3 {[%clk 0:00:14]} 60. Bd3 {[%clk 0:00:40]}  Bd5 {[%clk 0:00:13]} 61. Bb5 {[%clk 0:00:38]}  Bf3 {[%clk 0:00:12]} 62. Bc4 {[%clk 0:00:38]}  Bc6 {[%clk 0:00:12]} 63. Ke3 {[%clk 0:00:38]}  Bg2 {[%clk 0:00:11]} 64. Bf7 {[%clk 0:00:33]}  Bd5 {[%clk 0:00:11]} 65. Bg6 {[%clk 0:00:31]}  Bg2 {[%clk 0:00:09]} 66. Kd4 {[%clk 0:00:31]}  Bd5 {[%clk 0:00:08]} 67. Bf5 {[%clk 0:00:29]}  Bf3 {[%clk 0:00:08]} 68. Kc4 {[%clk 0:00:27]}  Bc6 {[%clk 0:00:07]} 69. Bg6 {[%clk 0:00:25]}  Bd7 {[%clk 0:00:07]} 70. Bf7 {[%clk 0:00:22]}  Bc6 {[%clk 0:00:07]} 71. Kd4 {[%clk 0:00:20]}  Bd7 {[%clk 0:00:07]} 72. Ke3 {[%clk 0:00:19]}  Bf5 {[%clk 0:00:07]} 73. Kd4 {[%clk 0:00:18]}  Bd7 {[%clk 0:00:06]} 74. Bg8 {[%clk 0:00:17]}  Bf5 {[%clk 0:00:04]} 75. Bc4 {[%clk 0:00:14]}  Bd7 {[%clk 0:00:05]} 76. Ke4 {[%clk 0:00:14]}  Bg4 {[%clk 0:00:05]} 77. Bd3 {[%clk 0:00:12]}  Bd7 {[%clk 0:00:05]} 78. Kd4 {[%clk 0:00:12]}  Be6 {[%clk 0:00:05]} 79. Be4 {[%clk 0:00:11]}  Bd7 {[%clk 0:00:05]} 80. Bd5 {[%clk 0:00:11]}  Bf5 {[%clk 0:00:05]} 81. Bf3 {[%clk 0:00:11]}  Bd7 {[%clk 0:00:05]} 82. Bd5 {[%clk 0:00:11]}  Bf5 {[%clk 0:00:05]} 83. Bf3 {[%clk 0:00:10]}  Bd7 {[%clk 0:00:06]} 84. Be4 {[%clk 0:00:11]}  Be6 {[%clk 0:00:06]} 85. Bf3 {[%clk 0:00:10]}  Bd7 {[%clk 0:00:06]} 1/2-1/2


[Site "https://www.chess.com"]

[Event "Titled Tuesday Blitz June 20 Late 2023"]
[White "Sainz Aguirre, Ignacio"]
[Black "Jonkman, Harmen"]
[WhiteFideId "5101727"]
[BlackFideId "1002708"]
[WhiteElo "1889"]
[BlackElo "2368"]
[Result "0-1"]
[Round "4"]
[TimeControl "180+2"]
[Date "2023.06.20"]
[WhiteClock "0:00:34"]
[BlackClock "0:01:28"]
[Board "155"]

1. e4 {[%clk 0:03:00]}  e5 {[%clk 0:02:56]} 2. Nf3 {[%clk 0:03:00]}  Nc6 {[%clk 0:02:56]} 3. Bc4 {[%clk 0:02:58]}  Bc5 {[%clk 0:02:56]} 4. O-O {[%clk 0:02:55]}  Nf6 {[%clk 0:02:55]} 5. d3 {[%clk 0:02:55]}  h6 {[%clk 0:02:52]} 6. c3 {[%clk 0:02:52]}  d6 {[%clk 0:02:52]} 7. Re1 {[%clk 0:02:50]}  Bb6 {[%clk 0:02:50]} 8. Nbd2 {[%clk 0:02:47]}  O-O {[%clk 0:02:46]} 9. h3 {[%clk 0:02:46]}  a6 {[%clk 0:02:43]} 10. a4 {[%clk 0:02:45]}  Kh8 {[%clk 0:02:41]} 11. b4 {[%clk 0:02:42]}  Nh7 {[%clk 0:02:40]} 12. Nf1 {[%clk 0:02:22]}  f5 {[%clk 0:02:40]} 13. Be3 {[%clk 0:02:14]}  Bxe3 {[%clk 0:02:19]} 14. Rxe3 {[%clk 0:01:57]}  Qf6 {[%clk 0:02:00]} 15. Ra2 {[%clk 0:01:45]}  Bd7 {[%clk 0:01:53]} 16. N3h2 {[%clk 0:01:31]}  Ng5 {[%clk 0:01:46]} 17. b5 {[%clk 0:00:57]}  axb5 {[%clk 0:01:38]} 18. axb5 {[%clk 0:00:57]}  Rxa2 {[%clk 0:01:37]} 19. Bxa2 {[%clk 0:00:56]}  Na7 {[%clk 0:01:30]} 20. c4 {[%clk 0:00:41]}  fxe4 {[%clk 0:01:29]} 21. Ng4 {[%clk 0:00:34]}  Bxg4 {[%clk 0:01:28]} 0-1


[Site "https://www.chess.com"]

[Event "Titled Tuesday Blitz June 20 Late 2023"]
[White "Carrasco Miranda, Andres"]
[Black "Vargas, Mauricio"]
[WhiteFideId "3405990"]
[BlackFideId "4404572"]
[WhiteElo "2183"]
[BlackElo "1986"]
[Result "1-0"]
[Round "4"]
[TimeControl "180+2"]
[Date "2023.06.20"]
[WhiteClock "0:00:21"]
[BlackClock "0:00:00"]
[Board "158"]

1. d4 {[%clk 0:03:00]}  d5 {[%clk 0:02:29]} 2. c4 {[%clk 0:02:11]}  c6 {[%clk 0:02:28]} 3. Nf3 {[%clk 0:02:10]}  e6 {[%clk 0:02:29]} 4. e3 {[%clk 0:02:09]}  Nf6 {[%clk 0:02:29]} 5. b3 {[%clk 0:02:09]}  Nbd7 {[%clk 0:02:29]} 6. Bd3 {[%clk 0:02:09]}  Bd6 {[%clk 0:02:28]} 7. Bb2 {[%clk 0:02:09]}  O-O {[%clk 0:02:20]} 8. O-O {[%clk 0:02:08]}  Re8 {[%clk 0:02:16]} 9. Ne5 {[%clk 0:02:08]}  Nf8 {[%clk 0:02:11]} 10. Nd2 {[%clk 0:02:06]}  N6d7 {[%clk 0:02:09]} 11. f4 {[%clk 0:02:04]}  f6 {[%clk 0:02:09]} 12. Qh5 {[%clk 0:01:50]}  fxe5 {[%clk 0:02:01]} 13. fxe5 {[%clk 0:01:51]}  Be7 {[%clk 0:01:55]} 14. Qf7+ {[%clk 0:01:25]}  Kh8 {[%clk 0:01:51]} 15. Rf3 {[%clk 0:01:20]}  Bg5 {[%clk 0:01:45]} 16. Raf1 {[%clk 0:01:09]}  Qe7 {[%clk 0:01:30]} 17. Qh5 {[%clk 0:01:07]}  Bh6 {[%clk 0:01:28]} 18. h4 {[%clk 0:00:31]}  b6 {[%clk 0:01:15]} 19. Rf7 {[%clk 0:00:24]}  Bxe3+ {[%clk 0:01:00]} 20. Kh1 {[%clk 0:00:24]}  Bxd2 {[%clk 0:00:23]} 21. Rxe7 {[%clk 0:00:24]}  Rxe7 {[%clk 0:00:21]} 22. Ba3 {[%clk 0:00:24]}  Re8 {[%clk 0:00:20]} 23. Bxf8 {[%clk 0:00:22]}  Bh6 {[%clk 0:00:00]} 24. Qxe8 {[%clk 0:00:21]} 1-0


[Site "https://www.chess.com"]